Cogmind - Beta 16.1 @@@ ROGUE MODE // 2026.02.26 @ 19:10:15 Player: Legion1337 Result: Destroyed by as-27061 with Assembled Blade Performance ------------- Evolutions (0) 0 Regions Visited (2) 400 Robots Destroyed (11) 55 Value Destroyed (300) 300 Prototype IDs (0) 0 Alien Tech Used (0) 0 Bonus (0) 0 TOTAL SCORE: 755 Bonus ------- None Cogmind --------- Core Integrity 0/250 Matter 199/300 Energy 100/100 System Corruption 5% Temperature Cool (0) Movement Core (50) Location -10/Mines Parts ------- > --- POWER (1) -------- (None) > --- PROPULSION (2) --- (None) > --- UTILITY (2) ------ (None) > --- WEAPON (2) ------- (None) > --- INVENTORY (5) ---- Ion Engine ECM Suite Light Armor Plating Mining Laser Peak State ------------ > --- POWER ------------ Light Ion Engine > --- PROPULSION ------- Flight Unit > --- UTILITY ---------- Scrap Suit > --- WEAPON ----------- Grenade Launcher > --- INVENTORY -------- Ion Engine ECM Suite Light Armor Plating Mining Laser [Rating: 11] Favorites ----------- Power Light Ion Engine Engine Light Ion Engine Propulsion Aluminum Leg Leg Aluminum Leg Flight Unit Flight Unit Utility ECM Suite Device ECM Suite Storage Small Storage Unit Protection Light Armor Plating Weapon Medium Laser Energy Gun Medium Laser Ballistic Gun Light Assault Rifle Launcher Grenade Launcher Special Weapon Mining Laser Build | -11 -10 -10 ------- Run | Yrd Mat Min Slots Evolved . | . . . Power . | . . . Propulsion . | . . . Utility . | . . . Weapon . | . . . Parts Attached 13 | . 1 12 Power 2 | . . 2 Engine 2 | . . 2 Core . | . . . Reactor . | . . . Propulsion 2 | . . 2 Treads . | . . . Leg . | . . . Wheel . | . . . Hover . | . . . Flight 2 | . . 2 Utility 4 | . 1 3 Device 2 | . 1 1 Storage . | . . . Processor . | . . . Hackware . | . . . Protection 2 | . . 2 Artifact . | . . . Weapon 5 | . . 5 Energy Gun 1 | . . 1 Energy Cannon . | . . . Ballistic Gun 2 | . . 2 Ballistic Cannon . | . . . Launcher 1 | . . 1 Special Weapon 1 | . . 1 Impact Weapon . | . . . Slashing Weapon . | . . . Piercing Weapon . | . . . Special Melee Weapon . | . . . Unidentified Prototypes . | . . . Parts Lost 11 | . 1 10 Power 3 | . 1 2 Propulsion 2 | . . 2 Utility 1 | . . 1 Weapon 5 | . . 5 Highest Loss Streak 7 | . 1 7 To Critical Strikes . | . . . Average Backups 4 | 5 4 4 Power 1 | 1 1 1 Propulsion . | 3 . . Utility 1 | . 1 1 Weapon 1 | 1 1 1 Tool/Special . | . . . Unused Backups 13 | . 8 5 Power 2 | . 1 1 Propulsion 4 | . 2 2 Utility 2 | . 2 . Weapon 5 | . 3 2 Tool/Special . | . . . Average Slot Usage (%) 63 | . 78 43 Engine 9 | . 9 10 Leg 18 | . 28 6 Flight 4 | . . 10 Device 8 | . 10 6 Energy Gun 18 | . 28 4 Special Weapon 1 | . . 2 Peak Build Rating 11 | 6 6 11 Average Rating 5 | 6 5 4 On Entrance 5 | 6 6 5 Avg Prop Armor Cover (%) . | . . . Naked Turns . | . . . Heaviest Build 12 | 12 12 12 Greatest Support 20 | 20 20 20 Greatest Overweight (x) 2 | . . 2 Average Overweight (x) . | . . . Largest Inventory Capacity 8 | 8 8 5 Average Capacity 5 | 8 5 5 Most Carried 5 | 5 5 5 Average Carried 4 | 2 4 4 Final Capacity 8 | 8 5 5 Final Carried 5 | 2 5 4 Scrap Suit Usage (%) 4 | . . 10 Class Distribution -------------------- 100% | Mutant Dominant Class ---------------- Mutant | -10/Materials Mutant | -10/Mines Resources | -11 -10 -10 ----------- Run | Yrd Mat Min Matter Collected 233 | 165 45 23 Remotely . | . . . Salvage Created 431 | . 350 81 Parts 18 | . 13 5 Haulers Intercepted . | . . . Recyclers Shooed . | . . . Parts Field Recycled . | . . . Retrieved Matter . | . . . Parts Self-Destructed . | . . . Prevented . | . . . Parts Restored . | . . . Kills | -11 -10 -10 ------- Run | Yrd Mat Min Combat Hostiles Destroyed 18 | . 7 11 Guns 9 | . 6 3 AOE 9 | . 1 8 Classes Destroyed 4 | . 2 2 Recycler 1 | . 1 . Swarmer 3 | . . 3 Grunt 7 | . 7 . Assembled 8 | . . 8 Best Kill Streak 8 | . 6 8 Combat Bots Only 8 | . 4 8 Max Kills in Single Turn 5 | . 1 5 Gunslinging . | . . . Exploded 5 | . 1 5 Melee . | . . . Uniques/NPCs Destroyed . | . . . Combat | -11 -10 -10 -------- Run | Yrd Mat Min Hostile Shots Fired 106 | . 28 78 Missed 35 | . 11 24 Hits 71 | . 17 54 Melee 17 | . . 17 Projectile 54 | . 17 37 AOE 4 | . . 4 Critical Strikes 2 | . . 2 Part Disruptions 1 | . . 1 Damage Taken 1228 | . 237 991 Core 255 | . 26 229 Absorbed by Shields . | . . . Core Remaining (%) 100 | 100 . . Volleys Fired 33 | . 23 10 Largest 2 | . 2 2 Hottest 90 | . 90 90 Shots Fired 59 | . 46 13 Gun 55 | . 46 9 Cannon . | . . . Launcher 4 | . . 4 Special . | . . . Kinetic 2 | . . 2 Thermal 28 | . 23 5 Explosive 4 | . . 4 Electromagnetic 25 | . 23 2 Robot Hit Streak 8 | . 8 2 Robot Miss Streak 3 | . 2 3 Penetration Max . | . . . Secondary Targets 1 | . . 1 Max Gunslinging Chain 1 | . . 1 Shots Hit Robots 41 | . 35 6 Core Hits 46 | . 16 30 Critical Kills . | . . . Critical Parts Destroyed . | . . . Critical Strikes 1 | . 1 . Corrupt 1 | . 1 . Melee Attacks . | . . . Impact . | . . . Slashing . | . . . Piercing . | . . . Sneak Attacks . | . . . Combat Hostiles . | . . . Follow-up Attacks . | . . . Damage Inflicted 1186 | . 501 685 Guns 522 | . 445 77 Cannons . | . . . Explosions 655 | . 50 605 Melee . | . . . Ramming 9 | . 6 3 Kinetic 16 | . . 16 Thermal 322 | . 273 49 Explosive 605 | . . 605 Electromagnetic 234 | . 222 12 Impact . | . . . Slashing . | . . . Piercing . | . . . Highest Corruption 5 | . 1 5 Average Corruption 1 | . 1 1 Corruption Purged . | . . . Corruption Blocked . | . . . Effects 3 | . 1 2 Matter Fused 1 | . . 1 Energy Discharges 1 | . 1 . Data Loss (major) 1 | . . 1 Overload Shots . | . . . Overflow Damage 12 | . . 12 Projectiles . | . . . Explosions 12 | . . 12 Melee . | . . . Knockbacks . | . . . Impact . | . . . Kinetic . | . . . Secondary . | . . . Self-Inflicted Damage 50 | . . 50 Shots 2 | . . 2 Rammed 1 | . . 1 Targets Rammed 2 | . 1 1 Kicked 1 | . 1 . Crushed . | . . . Highest Temperature 289 | . 289 35 Average Temperature 107 | . 123 15 Received Heat Transfer 260 | . 120 140 Effects 3 | . 3 . Interference 3 | . 3 . Siege Activations . | . . . Martial Activations . | . . . Shielding Activations . | . . . Robots Disrupted . | . . . Combat Hostiles . | . . . Robots Corrupted . | . . . Combat Hostiles . | . . . Parts Fried 1 | . 1 . Impact Corruptions . | . . . Robots Melted . | . . . Combat Hostiles . | . . . Parts Melted . | . . . Heat Transferred 914 | . 766 148 Parts Sabotaged . | . . . Parts Stolen . | . . . Parts Stripped . | . . . Power Chain Reactions 1 | . 1 . Alert | -11 -10 -10 ------- Run | Yrd Mat Min Maximum Alert Level . | . . . Low Security (%) 100 | 100 100 100 Level 1 . | . . . Level 2 . | . . . Level 3 . | . . . Level 4 . | . . . Level 5 . | . . . High Security . | . . . Max Security . | . . . Peak Influence 125 | . 125 71 Initial 31 | . . 31 Average 37 | . 51 20 Influence Increases 289 | . 190 99 Destroy 0b10 Robot/C 200 | . 140 60 Destroy 0b10 Robot/NC 5 | . 5 . Destroy Leader 50 | . 40 10 Destroy Structure 34 | . 5 29 Influence Decreases 289 | . 110 179 Entered New Map 49 | . . 49 Time Decay 181 | . 100 81 Lost Part 59 | . 10 49 Squads Dispatched 3 | . 3 . Investigation 1 | . 1 . Extermination . | . . . Reinforcement 2 | . 2 . Assault . | . . . Garrison . | . . . Intercept . | . . . Searches Triggered . | . . . Construction Impeded . | . . . Haulers Reinforced . | . . . Active Scanning Responses . | . . . Cargo Convoy Interrupts . | . . . Stealth | -11 -10 -10 --------- Run | Yrd Mat Min Distress Signals 1 | . 1 . Communications Jammed . | . . . Distress Signals . | . . . Times Spotted 38 | . 14 24 Peak Tracking Total 17 | . 3 17 Tactical Retreats 2 | . . 2 Traps | -11 -10 -10 ------- Run | Yrd Mat Min Traps Triggered 1 | . 1 . Indirectly . | . . . Trap Hack Attempts . | . . . Triggered . | . . . Disarmed . | . . . Reprogrammed . | . . . Reused . | . . . Traps Extracted . | . . . Installed . | . . . Triggered . | . . . Machines | -11 -10 -10 ---------- Run | Yrd Mat Min Machines Disabled . | . . . Max in Single Turn . | . . . Machines Repaired . | . . . Machines Dismantled . | . . . Machines Sabotaged . | . . . Overloaded Fab Kills . | . . . Hacking | -11 -10 -10 --------- Run | Yrd Mat Min Machines Accessed 2 | . 2 . Terminals 2 | . 2 . Fabricators . | . . . Repair Stations . | . . . Recycling Units . | . . . Scanalyzers . | . . . Garrison Access . | . . . Total Hacks 5 | . 5 . Successful . | . . . Failed 5 | . 5 . Catastrophic 2 | . 2 . Database Lockouts . | . . . Manual 5 | . 5 . Terminals 5 | . 5 . Fabricators . | . . . Repair Stations . | . . . Recycling Units . | . . . Scanalyzers . | . . . Garrison Access . | . . . Terminal Hacks . | . . . Fabricator Hacks . | . . . Repair Station Hacks . | . . . Recycling Unit Hacks . | . . . Scanalyzer . | . . . Garrison Access Hacks . | . . . Unauthorized Hacks . | . . . Terminals . | . . . Fabricators . | . . . Repair Stations . | . . . Recycling Units . | . . . Scanalyzers . | . . . Garrison Access . | . . . Data Cores Recovered . | . . . Used . | . . . Hacking Detections 2 | . 2 . Full Trace Events 1 | . 1 . Feedback Events 1 | . 1 . Corruption 1 | . 1 . Feedback Blocked . | . . . Robot Schematics Acquired . | . . . Robots Built . | . . . Authchips . | . . . Time . | . . . Total Robot Build Rating . | . . . Part Schematics Acquired . | . . . Parts Built . | . . . Authchips . | . . . Time . | . . . Total Part Build Rating . | . . . Part Studies Acquired . | . . . Parts Repaired . | . . . Time . | . . . Parts Recycled . | . . . Recycled Matter . | . . . Retrieved Matter . | . . . Retrieved Components . | . . . Parts Scanalyzed . | . . . Part Schematics Acquired . | . . . Parts Damaged . | . . . Bothacking | -11 -10 -10 ------------ Run | Yrd Mat Min Used RIF Installer . | . . . Robots Hacked . | . . . Non-combat . | . . . Combat . | . . . Robot Hacks Applied . | . . . Relay Couplers Released . | . . . Fabnet Peak Effective % . | . . . Robots Rewired . | . . . Allies Hacked . | . . . Hacks Repelled . | . . . Allies | -11 -10 -10 -------- Run | Yrd Mat Min Total Allies 3 | . . 3 Largest Group 3 | . . 3 Highest-Rated Group 40 | . . 40 Highest-Rated Ally 16 | . . 16 Total Orders 1 | . . 1 FOLLOW 1 | . . 1 Ally Attacks . | . . . Total Damage . | . . . Kills . | . . . Allies Corrupted . | . . . Allies Melted . | . . . Intel | -11 -10 -10 ------- Run | Yrd Mat Min Active Infowar (turns) 82 | . 70 12 ECM 82 | . 70 12 Robot Analysis Total . | . . . Derelict Logs Recovered 1 | . . 1 Drone Launches . | . . . Drone Recoveries . | . . . Exploration | -11 -10 -10 ------------- Run | Yrd Mat Min Turns Passed 533 | 5 305 223 Spaces Moved 463 | 2 189 272 Core 9 | . . 9 Treads . | . . . Legs 211 | 2 189 20 Wheels . | . . . Hover . | . . . Flight 243 | . . 243 Fastest Speed 40 | 120 120 40 Average Speed 79 | 120 120 51 Slowest Speed 190 | 120 120 190 Overloaded Moves . | . . . Propulsion Burnouts . | . . . Robots Hopped . | . . . Potential Cave-ins . | . . . Cave-ins Triggered . | . . . Exploration Rate (%) 39 | 2 50 66 Regions Visited 2 Branch Regions 1 Pre-discovered Areas . | . . . Known Exits Taken . | . . . Unknown Exits Taken 2 | 1 1 . Scrap Searched . | . . . Spaces Dug . | . . . Terrain Destroyed 33 | . 3 30 Melee . | . . . Projectile . | . . . AOE 33 | . 3 30 Terrain Rammed . | . . . Walls Destroyed . | . . . Machines Disabled . | . . . Actions | -11 -10 -10 --------- Run | Yrd Mat Min Total 570 | 7 222 341 Wait 38 | . 2 36 Move 461 | 1 188 272 Hop . | . . . Pick Up 6 | 1 4 1 Fast Attach 8 | . 1 7 Attach 4 | . . 4 Detach 5 | . 1 4 Swap 2 | . . 2 Drop 11 | 5 2 4 Fire 33 | . 23 10 Melee . | . . . Ram 1 | . . 1 Kick 1 | . 1 . Crush . | . . . Escape Stasis . | . . . Rewire . | . . . Trap . | . . . Miscellaneous . | . . . Route ------- -11/Scrapyard -10/Materials -10/Mines (discovered 2 exits: [*Mat] / [*Exi]) History --------- Turn | Location | Event 4 | -11/Scrapyard | Discovered new exit (range 1) 6 | -11/Scrapyard | Entered Materials 267 | -10/Materials | Discovered new exit (range 16) 300 | -10/Materials | Build established: Mutant 311 | -10/Materials | Entered Mines 314 | -10/Mines | YI-UF0 nonchalantly dropped a Grenade Launcher on the ground 335 | -10/Mines | Learned 2 Materials zone layouts 379 | -10/Mines | Discovered new exit (range 4) 399 | -10/Mines | Lost 3 parts (1n2w) 446 | -10/Mines | Assisted by bots powering up and referring to "LRC-V3" 482 | -10/Mines | Discovered new exit (range 13) 491 | -10/Mines | Assembled infested the area 492 | -10/Mines | Found a Scrap Suit stashed away for nefarious purposes 493 | -10/Mines | Found Scrap Suit 512 | -10/Mines | Core integrity fell below 50% 523 | -10/Mines | Core integrity fell below 20% 534 | -10/Mines | Destroyed 8 combat bots 534 | -10/Mines | Destroyed by as-27061 with Assembled Blade Last Messages --------------- 00513_ as-78455 destroyed. 00513_ as-17605 destroyed. 00514_ The unstable cave ceiling collapses. 00514_ Grenade Launcher destroyed. 00514_ Flight Unit destroyed. 00514_ System corrupted by crushing effect (+1). 00514_ System corrupted by crushing effect (+3). 00516_ The unstable cave ceiling collapses. 00517_ Critical hit (Burn: +80). 00519_ System corrupted: Substantial component data lost. 00521_ Acquired Lgt. Ion Engine. 00524_ Acquired Lgt. Assault Rifle. 00526_ as-87102 destroyed. 00526_ Acquired 11 matter. 00529_ Acquired Lgt. Assault Rifle. 00531_ Lgt. Assault Rifle destroyed. 00532_ Lgt. Ion Engine destroyed. 00532_ Lgt. Assault Rifle destroyed. 00533_ Slammed into as-55065. 00534_ Scrap Suit destroyed. Map ----- +----------------------------------------------------+ | ?????????????????????????????????????????? | | ?????????????????????????????????????????? | | ?????????????????????????????????????????? | | ?????????????????????????????????????????? | | ?????????????????????????????????????????? | | ?????????????????????????????????????????? | | ?????????????????????????????????????????? | | ?????????????????????????????????????????? | | ?????????????????????????????????????????? | | ?????????????????????????????????????????? | | ??? ???????????????????????????????????? | | ??? ???????????????????????????????????? | | ??? ???????????????????????????????????? | | ??? #?????? #?????????????????????????? | | ???# #?????# #?????????????????????????? | | ???# #????? #?????????????????????????? | | #### #????# #?????????????????????????? | | ##### #????????###??????????????? | | #???????? ??????????????? | | ? #????????# #??????????????? | | ?? #????????# ##?????????????? | | ??? #???????### ##????????????? | | ???# #???#??## < ####?????????? | | #### #???# ## ??????????? | | #????# %aa #????????????? | | #????????# a@a###???????????? | | ## ##????????## aaa #???????????? | | # #??????????#a # # """????? | | # ##????###### a """????? | | # ## ###### # # % ## """????? | | ## #### # % #???""????? | | ?####??# ######## ##?????????? | | ???????#####??????# = #??????????? | | ??????????????????# #??????????? | | ????????????????######## # ###??????????? | | ????????????????# ???? #????????????? | | ????????????????# #????#### #????????????? | | ????????????????# #???????? #???????????? | | ??????????####### ##??????? ??????????? | | ????????### # ##??????# ?????????? | | ????????# #???????# ????????? | | ?????????# #???????? ????????? | | ??????#??# ###???????? ????????? | | ??????# ## ######?????????????? | | ??????# #?????????????? | | ????##### # # ##????????????? | | ???## ## #????????????? | | ???# # ## =! [ #???????? | | ??## # %=#???????? | | ### # ######?????????? | +----------------------------------------------------+ Best States ------------- Heat Dissipation 25 Energy Generation 10 Energy Capacity 125 Matter Stores 300 Matter Capacity 300 Sight Range 16 Terrain Scan Density 10 ECM Strength 1 Armor Coverage 150 Evasion (%) 62 Item Schematics ----------------- None Robot Schematics ------------------ None Fabricated ------------ Nothing Repaired ---------- Nothing Studied --------- None Alien Tech Used ----------------- None Achievements -------------- None Challenges ------------ None Game ------ Seed TerrainMetafieldStrikerail Manual? 0 Play Time 00:11:40 Cumulative 42.0 hours Start 2026.02.26 @ 18:59:19 End 2026.02.26 @ 19:10:15 Sessions 1 Manual Loads 0 Difficulty Rogue Special Mode None Game No. 34 Rogue 29 Adventurer 5 Explorer 0 Win Type - Total 0 Types 0/0/0/0/0/0/0/0/0/0 Lore% 17 Gallery% 31 Achievement% 26 Wizard Run 0 Options --------- Layout 0 ASCII 0 Keyboard 1 Movement Numpad Keybinds 0 Fullscreen 1 Font 24/Smallcaps Map View 76x50 Zoom Use 0% Tactical HUD 1 Map Filters NONE Filters NONE Steam 1 RUN: 538bbb98-d2c9-497a-8aef-712a2bbe2d32